Cogmind - Beta 11 @@@ ROGUE MODE // 2022.04.02 @ 10:34:47 Player: TickTock Result: Destroyed by G-47 Trooper with Particle Gun Performance ------------- Evolutions (0) 0 Regions Visited (1) 200 Robots Destroyed (7) 35 Value Destroyed (162) 162 Prototype IDs (0) 0 Alien Tech Used (0) 0 Bonus (0) 0 TOTAL SCORE: 397 Bonus ------- None Cogmind --------- Core Integrity 0/250 Matter 273/300 Energy 100/100 System Corruption 0% Temperature Cool (9) Movement Core (50) Location -10/Materials Parts ------- > --- POWER (1) -------- (None) > --- PROPULSION (2) --- (None) > --- UTILITY (2) ------ Heat Sink > --- WEAPON (2) ------- (None) > --- INVENTORY (5) ---- Aluminum Leg Peak State ------------ > --- POWER ------------ (None) > --- PROPULSION ------- Aluminum Leg Aluminum Leg > --- UTILITY ---------- Heat Sink Heat Sink > --- WEAPON ----------- Assault Rifle Light Assault Rifle > --- INVENTORY -------- Aluminum Leg [Rating: 6] Favorites ----------- Power None Propulsion Aluminum Leg Leg Aluminum Leg Utility Heat Sink Device Heat Sink Weapon Light Assault Rifle Ballistic Gun Light Assault Rifle Build | -11 -10 ------- Run | Scr Mat Slots Evolved . | . . Power . | . . Propulsion . | . . Utility . | . . Weapon . | . . Parts Attached 7 | 5 2 Power . | . . Engine . | . . Core . | . . Reactor . | . . Propulsion 2 | 2 . Treads . | . . Leg 2 | 2 . Wheel . | . . Hover . | . . Flight . | . . Utility 3 | 1 2 Device 3 | 1 2 Storage . | . . Processor . | . . Hackware . | . . Protection . | . . Artifact . | . . Weapon 2 | 2 . Energy Gun . | . . Energy Cannon . | . . Ballistic Gun 2 | 2 . Ballistic Cannon . | . . Launcher . | . . Special Weapon . | . . Impact Weapon . | . . Slashing Weapon . | . . Piercing Weapon . | . . Special Melee Weapon . | . . Unidentified Prototypes . | . . Parts Lost 6 | . 6 Power . | . . Propulsion 2 | . 2 Utility 2 | . 2 Weapon 2 | . 2 Highest Loss Streak 6 | . 6 To Critical Strikes . | . . Average Slot Usage (%) 73 | . 73 Leg 27 | . 27 Device 20 | . 20 Ballistic Gun 24 | . 24 Naked Turns . | . . Heaviest Build 5 | 4 5 Greatest Support 20 | 20 20 Greatest Overweight (x) . | . . Average Overweight (x) . | . . Largest Inventory Capacity 5 | 5 5 Average Capacity 5 | 5 5 Most Carried 1 | . 1 Average Carried . | . . Final Capacity 5 | 5 5 Final Carried 1 | . 1 Class Distribution -------------------- 100% | Mutant Dominant Class ---------------- Mutant | -10/Materials Resources | -11 -10 ----------- Run | Scr Mat Matter Collected 361 | 242 119 Remotely . | . . Salvage Created 246 | 47 199 Parts 13 | 1 12 Haulers Intercepted . | . . Recyclers Shooed 1 | . 1 Parts Field Recycled . | . . Retrieved Matter . | . . Parts Self-Destructed . | . . Prevented . | . . Kills | -11 -10 ------- Run | Scr Mat Combat Hostiles Destroyed 6 | 1 5 Guns 6 | 1 5 Classes Destroyed 3 | 1 2 Recycler 1 | . 1 Swarmer 2 | . 2 Grunt 4 | 1 3 Best Kill Streak 4 | 1 4 Combat Bots Only 2 | 1 2 Max Kills in Single Turn 1 | 1 1 Gunslinging . | . . Exploded . | . . Melee . | . . Uniques/NPCs Destroyed . | . . Combat | -11 -10 -------- Run | Scr Mat Damage Taken 716 | 22 694 Core 256 | . 256 Absorbed by Shields . | . . Core Remaining (%) 100 | 100 . Volleys Fired 38 | 3 35 Largest 2 | 2 2 Hottest 40 | 40 40 Shots Fired 75 | 6 69 Gun 75 | 6 69 Cannon . | . . Launcher . | . . Special . | . . Kinetic 75 | 6 69 Thermal . | . . Explosive . | . . Electromagnetic . | . . Robot Hit Streak 5 | 4 5 Robot Miss Streak 5 | 2 5 Penetration Max . | . . Secondary Targets 1 | . 1 Max Gunslinging Chain 1 | . 1 Shots Hit Robots 33 | 4 29 Core Hits 19 | 2 17 Critical Kills 1 | . 1 Critical Parts Destroyed . | . . Critical Strikes 1 | . 1 Destroy 1 | . 1 Melee Attacks . | . . Impact . | . . Slashing . | . . Piercing . | . . Sneak Attacks . | . . Combat Hostiles . | . . Follow-up Attacks . | . . Damage Inflicted 367 | 44 323 Guns 366 | 44 322 Cannons . | . . Explosions . | . . Melee . | . . Ramming 1 | . 1 Kinetic 366 | 44 322 Thermal . | . . Explosive . | . . Electromagnetic . | . . Impact . | . . Slashing . | . . Piercing . | . . Highest Corruption . | . . Average Corruption . | . . Corruption Purged . | . . Corruption Blocked . | . . Overload Shots . | . . Overflow Damage . | . . Projectiles . | . . Explosions . | . . Melee . | . . Knockbacks . | . . Impact . | . . Kinetic . | . . Secondary . | . . Self-Inflicted Damage . | . . Shots . | . . Rammed . | . . Targets Rammed 1 | . 1 Kicked 1 | . 1 Crushed . | . . Highest Temperature 1 | 1 . Average Temperature 1 | 1 . Received Heat Transfer 261 | 12 249 Siege Activations . | . . Robots Corrupted . | . . Combat Hostiles . | . . Parts Fried . | . . Impact Corruptions . | . . Robots Melted . | . . Combat Hostiles . | . . Parts Melted . | . . Heat Transferred . | . . Parts Sabotaged . | . . Parts Stolen . | . . Parts Stripped . | . . Power Chain Reactions . | . . Missiles Intercepted . | . . Alert | -11 -10 ------- Run | Scr Mat Peak Influence 203 | 20 203 Initial 13 | . 13 Average 54 | 5 64 Maximum Alert Level 1 | . 1 Low Security (%) 99 | 100 99 Level 1 . | . . Level 2 . | . . Level 3 . | . . Level 4 . | . . Level 5 . | . . High Security . | . . Max Security . | . . Squads Dispatched 3 | . 3 Investigation 1 | . 1 Extermination . | . . Reinforcement 2 | . 2 Assault . | . . Garrison . | . . Intercept . | . . Searches Triggered . | . . Construction Impeded . | . . Haulers Reinforced . | . . Active Scanning Responses . | . . Cargo Convoy Interrupts . | . . Stealth | -11 -10 --------- Run | Scr Mat Distress Signals 2 | . 2 Communications Jammed . | . . Distress Signals . | . . Times Spotted 18 | 1 17 Peak Tracking Total 6 | 1 6 Tactical Retreats 1 | . 1 Traps | -11 -10 ------- Run | Scr Mat Traps Triggered 1 | . 1 Indirectly . | . . Trap Hack Attempts . | . . Triggered . | . . Disarmed . | . . Reprogrammed . | . . Reused . | . . Traps Extracted . | . . Installed . | . . Triggered . | . . Machines | -11 -10 ---------- Run | Scr Mat Machines Disabled . | . . Max in Single Turn . | . . Machines Sabotaged . | . . Garrisons Compromised . | . . Overloaded Fab Kills . | . . Hacking | -11 -10 --------- Run | Scr Mat Machines Accessed 1 | . 1 Terminals 1 | . 1 Fabricators . | . . Repair Stations . | . . Recycling Units . | . . Scanalyzers . | . . Garrison Access . | . . Total Hacks 2 | . 2 Successful 2 | . 2 Failed . | . . Catastrophic . | . . Database Lockouts . | . . Manual . | . . Terminals 2 | . 2 Fabricators . | . . Repair Stations . | . . Recycling Units . | . . Scanalyzers . | . . Garrison Access . | . . Terminal Hacks 2 | . 2 Record 1 | . 1 Dispatch Records 1 | . 1 Fabricator Hacks . | . . Repair Station Hacks . | . . Recycling Unit Hacks . | . . Scanalyzer . | . . Garrison Access Hacks . | . . Unauthorized Hacks . | . . Terminals . | . . Fabricators . | . . Repair Stations . | . . Recycling Units . | . . Scanalyzers . | . . Garrison Access . | . . Data Cores Recovered . | . . Used . | . . Hacking Detections . | . . Full Trace Events . | . . Feedback Events . | . . Feedback Blocked . | . . Robot Schematics Acquired . | . . Robots Built . | . . Authchips . | . . Time . | . . Total Robot Build Rating . | . . Part Schematics Acquired . | . . Parts Built . | . . Authchips . | . . Time . | . . Total Part Build Rating . | . . Parts Repaired . | . . Time . | . . Parts Recycled . | . . Recycled Matter . | . . Retrieved Matter . | . . Retrieved Components . | . . Parts Scanalyzed . | . . Part Schematics Acquired . | . . Parts Damaged . | . . Bothacking | -11 -10 ------------ Run | Scr Mat Used RIF Installer . | . . Robots Hacked . | . . Non-combat . | . . Combat . | . . Robot Hacks Applied . | . . Relay Couplers Released . | . . Fabnet Peak Effective % . | . . Robots Rewired . | . . Allies Hacked . | . . Hacks Repelled . | . . Allies | -11 -10 -------- Run | Scr Mat Total Allies . | . . Largest Group . | . . Highest-Rated Group . | . . Highest-Rated Ally . | . . Total Orders . | . . Ally Attacks . | . . Total Damage . | . . Kills . | . . Allies Corrupted . | . . Allies Melted . | . . Intel | -11 -10 ------- Run | Scr Mat Robot Analysis Total . | . . Derelict Logs Recovered . | . . Drone Launches . | . . Drone Recoveries . | . . Exploration | -11 -10 ------------- Run | Scr Mat Turns Passed 524 | 95 429 Spaces Moved 339 | 75 264 Core 20 | 14 6 Treads . | . . Legs 319 | 61 258 Wheels . | . . Hover . | . . Flight . | . . Fastest Speed 50 | 50 50 Average Speed 115 | 106 118 Slowest Speed 120 | 120 120 Overloaded Moves . | . . Propulsion Burnouts . | . . Robots Hopped . | . . Cave-ins Triggered . | . . Exploration Rate (%) 20 | 8 33 Regions Visited 1 Branch Regions . Pre-discovered Areas . | . . Known Exits Taken . | . . Unknown Exits Taken 1 | 1 . Scrap Searched . | . . Spaces Dug . | . . Terrain Destroyed . | . . Melee . | . . Projectile . | . . AOE . | . . Terrain Rammed . | . . Walls Destroyed . | . . Machines Disabled . | . . Actions | -11 -10 --------- Run | Scr Mat Total 399 | 82 317 Wait 14 | . 14 Move 338 | 74 264 Hop . | . . Pick Up 1 | . 1 Fast Attach 7 | 5 2 Attach . | . . Detach . | . . Swap . | . . Drop . | . . Fire 38 | 3 35 Melee . | . . Ram . | . . Kick 1 | . 1 Crush . | . . Escape Stasis . | . . Rewire . | . . Trap . | . . Miscellaneous . | . . Route ------- -11/Scrapyard -10/Materials (discovered 2 exits: [*Mat x2]) History --------- Turn | Location | Event 2 | -11/Scrapyard | Met Revision 17 58 | -11/Scrapyard | Discovered new exit (range 8) 96 | -11/Scrapyard | Entered Materials 306 | -10/Materials | Build established: Mutant 315 | -10/Materials | Discovered new exit (range 5) 440 | -10/Materials | Discovered new exit (range 8) 473 | -10/Materials | Core integrity fell below 50% 517 | -10/Materials | Core integrity fell below 20% 525 | -10/Materials | Destroyed by G-47 Trooper with Particle Gun Last Messages --------------- 00432_ R-06 Scavenger collects Flight Unit. 00440_ EXIT=FOUND 00443_ R-06 Scavenger suffers critical hit (Destroy). 00443_ R-06 Scavenger destroyed. 00443_ Switching to secondary target: G-47 Trooper. 00443_ Heat Sink destroyed. 00449_ Acquired Sensor Array. 00449_ ALERT: Hostiles spotted, dispatching reinforcements to Terminal M003. 00452_ R-06 Scavenger sends out distress signal. 00461_ G-34 Mercenary destroyed. 00471_ Lgt. Assault Rifle destroyed. 00473_ Assault Rifle destroyed. 00480_ Kicked S-10 Pest out of the way. 00501_ Aluminum Leg destroyed. 00514_ Sensor Array destroyed. 00514_ Triggered Alarm Trap. 00514_ An alarm sounds. 00514_ ALERT: Alarm triggered, dispatching investigation squad. 00516_ Aluminum Leg destroyed. Map ----- +----------------------------------------------------+ | | | | | | | | | ???????????????????????????????????????????? | | ???????????????????????????????????????????? | | ????????????##########??#######????????????? | | ????????????# #??# #????????????? | | ????????????# #??# #????????????? | | ????????????# """ #??# ####????????????? | | ????????????# """ #??# #???????????????? | | ????????##### """ #### #???????????????? | | ????????# # """ + #???????????????? | | ????????# # """ #### #???????????????? | | ????????# # #??# #???????????????? | | ????????# + #??# #???????????????? | | ????????# ############# #??????? ?????? | | ????????# #?????? ????? | | ????????# #??????# #????? | | ????????# ##########+##+##??????# #????? | | ????????# #???# #???????+ +????? | | ????????# #???# #???????# #????? | | ????????# #???# #???????# #????? | | ????????# #???# #???????# #????? | | ????????# #???################### #????? | | ???????## ########## @ # # #????? | | ######## # """ [# #????? | | ka + """ # #????? | | w # """ # #????? | | ######### # ]# #????? | | #### #???????## ## """ # #????? | | ????#######????????# ## """ + #????? | | ????????????????????# ## """ # #????? | | ?????????????????????# ## ### ###### | | ??????????????????????# ## """#?# # # | | ??????????????????????# ## R"#?# # # | | ??????????????????????# g ## """#?# # # | | ??????????????????????# gg## #?# # # | | ??????????????????????# #########?# + # | | ??????????????????????# g#?????????# # ""# | | ??????????????????????/ ########### # T"# | | ??????????????????????# # ""# | | ??????????????????????# ######### # | | ???????????????######## #???????###### | | ???????????????# #????????????? | | ???????????????# < #????????????? | | ???????????????# #????????????? | | ???????????????# #######+####????????????? | | ???????????????# #???# #????????????? | | ???????????????# ##??# "T" #????????????? | +----------------------------------------------------+ Best States ------------- Heat Dissipation 45 Energy Generation 5 Energy Capacity 100 Matter Stores 300 Matter Capacity 300 Sight Range 16 Robot Scan Range 14 Terrain Scan Density 10 Evasion (%) 55 Item Schematics ----------------- None Robot Schematics ------------------ None Fabricated ------------ Nothing Alien Tech Used ----------------- None Achievements -------------- Storm Trooper Challenges ------------ None Game ------ Seed MakeshiftCryofiberJammer Manual? 0 Play Time 00:10:56 Cumulative 1.8 hours Start 2022.04.02 @ 10:19:25 End 2022.04.02 @ 10:34:47 Sessions 1 Manual Loads 0 Difficulty Rogue Special Mode None Game No. 2 Rogue 2 Adventurer 0 Explorer 0 Win Type - Total 0 Types 0/0/0/0/0/0/0/0/0 Lore% 0 Gallery% 1 Achievement% 1 Wizard Run 0 Options --------- ASCII 0 Keyboard 1 Movement Numpad Keybinds 0 Fullscreen 1 Font 24/Crisp Map View 76x56 Tactical HUD 1 Map Filters NONE Filters NONE Steam 1 RUN: 0ac05efc-4807-45a8-8e32-0581b61d0f8d